Workbook

Sheet Лист1
E2: Кредит | F2: -10000
E3: Процент | F3: 0.1
E4: Период | F4: 10
E5: Начало периода | F5: 2019-04-19
E6: Конец периода | F6: =EDATE(F5,F4*12) -> 2029-04-19
E7: Сумма переплаты по кредиту | F7: =G131 -> -5858.088426
E8: Сумма выплат за весь период | F8: =F131 -> 15858.08843
D9: График выплат
D10: Период | E10: Дата платежа | F10: Платеж | G10: % по кредиту | H10: тело долга | I10: Остаток долга
D11: 1 | E11: =EDATE(F$5,D11) -> 2019-05-19 | F11: =PMT($F$3/12,$F$4*12,$F$2) -> 132.1507369 | G11: =F2*F3/12 -> -83.33333333 | H11: =F11+G11 -> 48.81740355 | I11: =H11+F2 -> -9951.182596
D12: 2 | E12: =EDATE(F$5,D12) -> 2019-06-19 | F12: =PMT($F$3/12,$F$4*12,$F$2) -> 132.1507369 | G12: =I11*$F$3/12 -> -82.92652164 | H12: =F12+G12 -> 49.22421524 | I12: =I11+H12 -> -9901.958381
D13: 3 | E13: 2019-07-19 | F13: 132.1507369 | G13: =I12*$F$3/12 -> -82.51631984 | H13: =F13+G13 -> 49.63441704 | I13: =I12+H13 -> -9852.323964
D14: 4 | E14: 2019-08-19 | F14: 132.1507369 | G14: -82.1026997 | H14: 50.04803718 | I14: -9802.275927
D15: 5 | E15: 2019-09-19 | F15: 132.1507369 | G15: -81.68563272 | H15: 50.46510416 | I15: -9751.810823
D16: 6 | E16: 2019-10-19 | F16: 132.1507369 | G16: -81.26509019 | H16: 50.88564669 | I16: -9700.925176
D17: 7 | E17: 2019-11-19 | F17: 132.1507369 | G17: -80.84104313 | H17: 51.30969375 | I17: -9649.615482
D18: 8 | E18: 2019-12-19 | F18: 132.1507369 | G18: -80.41346235 | H18: 51.73727453 | I18: -9597.878208
D19: 9 | E19: 2020-01-19 | F19: 132.1507369 | G19: -79.9823184 | H19: 52.16841848 | I19: -9545.709789
D20: 10 | E20: 2020-02-19 | F20: 132.1507369 | G20: -79.54758158 | H20: 52.6031553 | I20: -9493.106634
D21: 11 | E21: 2020-03-19 | F21: 132.1507369 | G21: -79.10922195 | H21: 53.04151493 | I21: -9440.065119
D22: 12 | E22: 2020-04-19 | F22: 132.1507369 | G22: -78.66720933 | H22: 53.48352756 | I22: -9386.581592
D23: 13 | E23: 2020-05-19 | F23: 132.1507369 | G23: -78.22151326 | H23: 53.92922362 | I23: -9332.652368
D24: 14 | E24: 2020-06-19 | F24: 132.1507369 | G24: -77.77210307 | H24: 54.37863382 | I24: -9278.273734
D25: 15 | E25: 2020-07-19 | F25: 132.1507369 | G25: -77.31894778 | H25: 54.8317891 | I25: -9223.441945
D26: 16 | E26: 2020-08-19 | F26: 132.1507369 | G26: -76.86201621 | H26: 55.28872067 | I26: -9168.153224
D27: 17 | E27: 2020-09-19 | F27: 132.1507369 | G27: -76.40127687 | H27: 55.74946001 | I27: -9112.403764
D28: 18 | E28: 2020-10-19 | F28: 132.1507369 | G28: -75.93669804 | H28: 56.21403885 | I28: -9056.189726
D29: 19 | E29: 2020-11-19 | F29: 132.1507369 | G29: -75.46824771 | H29: 56.68248917 | I29: -8999.507236
D30: 20 | E30: 2020-12-19 | F30: 132.1507369 | G30: -74.99589364 | H30: 57.15484325 | I30: -8942.352393
D31: 21 | E31: 2021-01-19 | F31: 132.1507369 | G31: =I30*$F$3/12 -> -74.51960328 | H31: =F31+G31 -> 57.63113361 | I31: =I30+H31 -> -8884.72126
D32: 22 | E32: 2021-02-19 | F32: 132.1507369 | G32: -74.03934383 | H32: 58.11139305 | I32: -8826.609866
D33: 23 | E33: 2021-03-19 | F33: 132.1507369 | G33: -73.55508222 | H33: 58.59565466 | I33: -8768.014212
D34: 24 | E34: 2021-04-19 | F34: 132.1507369 | G34: -73.0667851 | H34: 59.08395178 | I34: -8708.93026
D35: 25 | E35: 2021-05-19 | F35: 132.1507369 | G35: -72.57441883 | H35: 59.57631805 | I35: -8649.353942
D36: 26 | E36: 2021-06-19 | F36: 132.1507369 | G36: -72.07794952 | H36: 60.07278737 | I36: -8589.281155
D37: 27 | E37: 2021-07-19 | F37: 132.1507369 | G37: -71.57734295 | H37: 60.57339393 | I37: -8528.707761
D38: 28 | E38: 2021-08-19 | F38: 132.1507369 | G38: -71.07256467 | H38: 61.07817221 | I38: -8467.629588
D39: 29 | E39: 2021-09-19 | F39: 132.1507369 | G39: -70.5635799 | H39: 61.58715698 | I39: -8406.042431
D40: 30 | E40: 2021-10-19 | F40: 132.1507369 | G40: -70.0503536 | H40: 62.10038329 | I40: -8343.942048
D41: 31 | E41: 2021-11-19 | F41: 132.1507369 | G41: -69.5328504 | H41: 62.61788648 | I41: -8281.324162
D42: 32 | E42: 2021-12-19 | F42: 132.1507369 | G42: -69.01103468 | H42: 63.1397022 | I42: -8218.18446
D43: 33 | E43: 2022-01-19 | F43: 132.1507369 | G43: -68.4848705 | H43: 63.66586639 | I43: -8154.518593
D44: 34 | E44: 2022-02-19 | F44: 132.1507369 | G44: -67.95432161 | H44: 64.19641527 | I44: -8090.322178
D45: 35 | E45: 2022-03-19 | F45: 132.1507369 | G45: -67.41935148 | H45: 64.7313854 | I45: -8025.590792
D46: 36 | E46: 2022-04-19 | F46: 132.1507369 | G46: -66.87992327 | H46: 65.27081361 | I46: -7960.319979
D47: 37 | E47: 2022-05-19 | F47: 132.1507369 | G47: -66.33599982 | H47: 65.81473706 | I47: -7894.505242
D48: 38 | E48: 2022-06-19 | F48: 132.1507369 | G48: -65.78754368 | H48: 66.3631932 | I48: -7828.142049
D49: 39 | E49: 2022-07-19 | F49: 132.1507369 | G49: -65.23451707 | H49: 66.91621981 | I49: -7761.225829
D50: 40 | E50: 2022-08-19 | F50: 132.1507369 | G50: -64.67688191 | H50: 67.47385498 | I50: -7693.751974
D51: 41 | E51: 2022-09-19 | F51: 132.1507369 | G51: -64.11459978 | H51: 68.0361371 | I51: -7625.715837
D52: 42 | E52: 2022-10-19 | F52: 132.1507369 | G52: -63.54763197 | H52: 68.60310491 | I52: -7557.112732
D53: 43 | E53: 2022-11-19 | F53: 132.1507369 | G53: -62.97593943 | H53: 69.17479745 | I53: -7487.937934
D54: 44 | E54: 2022-12-19 | F54: 132.1507369 | G54: -62.39948279 | H54: 69.7512541 | I54: -7418.18668
D55: 45 | E55: 2023-01-19 | F55: 132.1507369 | G55: -61.81822234 | H55: 70.33251455 | I55: -7347.854166
D56: 46 | E56: 2023-02-19 | F56: 132.1507369 | G56: -61.23211805 | H56: 70.91861883 | I56: -7276.935547
D57: 47 | E57: 2023-03-19 | F57: 132.1507369 | G57: -60.64112956 | H57: 71.50960732 | I57: -7205.42594
D58: 48 | E58: 2023-04-19 | F58: 132.1507369 | G58: -60.04521616 | H58: 72.10552072 | I58: -7133.320419
D59: 49 | E59: 2023-05-19 | F59: 132.1507369 | G59: -59.44433682 | H59: 72.70640006 | I59: -7060.614019
D60: 50 | E60: 2023-06-19 | F60: 132.1507369 | G60: -58.83845016 | H60: 73.31228673 | I60: -6987.301732
D61: 51 | E61: 2023-07-19 | F61: 132.1507369 | G61: -58.22751443 | H61: 73.92322245 | I61: -6913.37851
D62: 52 | E62: 2023-08-19 | F62: 132.1507369 | G62: -57.61148758 | H62: 74.5392493 | I62: -6838.83926
D63: 53 | E63: 2023-09-19 | F63: 132.1507369 | G63: -56.99032717 | H63: 75.16040971 | I63: -6763.678851
D64: 54 | E64: 2023-10-19 | F64: 132.1507369 | G64: -56.36399042 | H64: 75.78674646 | I64: -6687.892104
D65: 55 | E65: 2023-11-19 | F65: 132.1507369 | G65: -55.7324342 | H65: 76.41830268 | I65: -6611.473801
D66: 56 | E66: 2023-12-19 | F66: 132.1507369 | G66: -55.09561501 | H66: 77.05512187 | I66: -6534.41868
D67: 57 | E67: 2024-01-19 | F67: 132.1507369 | G67: -54.453489 | H67: 77.69724789 | I67: -6456.721432
D68: 58 | E68: 2024-02-19 | F68: 132.1507369 | G68: -53.80601193 | H68: 78.34472495 | I68: -6378.376707
D69: 59 | E69: 2024-03-19 | F69: 132.1507369 | G69: -53.15313922 | H69: 78.99759766 | I69: -6299.379109
D70: 60 | E70: 2024-04-19 | F70: 132.1507369 | G70: -52.49482591 | H70: 79.65591097 | I70: -6219.723198
D71: 61 | E71: 2024-05-19 | F71: 132.1507369 | G71: -51.83102665 | H71: 80.31971023 | I71: -6139.403488
D72: 62 | E72: 2024-06-19 | F72: 132.1507369 | G72: -51.16169573 | H72: 80.98904115 | I72: -6058.414447
D73: 63 | E73: 2024-07-19 | F73: 132.1507369 | G73: -50.48678706 | H73: 81.66394983 | I73: -5976.750497
D74: 64 | E74: 2024-08-19 | F74: 132.1507369 | G74: -49.80625414 | H74: 82.34448274 | I74: -5894.406014
D75: 65 | E75: 2024-09-19 | F75: 132.1507369 | G75: =I74*$F$3/12 -> -49.12005012 | H75: =F75+G75 -> 83.03068676 | I75: =I74+H75 -> -5811.375327
D76: 66 | E76: =EDATE(F$5,D76) -> 2024-10-19 | F76: =PMT($F$3/12,$F$4*12,$F$2) -> 132.1507369 | G76: -48.42812773 | H76: 83.72260915 | I76: -5727.652718
D77: 67 | E77: 2024-11-19 | F77: 132.1507369 | G77: -47.73043932 | H77: 84.42029756 | I77: -5643.232421
D78: 68 | E78: 2024-12-19 | F78: 132.1507369 | G78: -47.02693684 | H78: 85.12380004 | I78: -5558.108621
D79: 69 | E79: 2025-01-19 | F79: 132.1507369 | G79: -46.31757184 | H79: 85.83316504 | I79: -5472.275456
D80: 70 | E80: 2025-02-19 | F80: 132.1507369 | G80: -45.60229546 | H80: 86.54844142 | I80: -5385.727014
D81: 71 | E81: 2025-03-19 | F81: 132.1507369 | G81: -44.88105845 | H81: 87.26967843 | I81: -5298.457336
D82: 72 | E82: 2025-04-19 | F82: 132.1507369 | G82: -44.15381113 | H82: 87.99692575 | I82: -5210.46041
D83: 73 | E83: 2025-05-19 | F83: 132.1507369 | G83: -43.42050342 | H83: 88.73023347 | I83: -5121.730177
D84: 74 | E84: 2025-06-19 | F84: 132.1507369 | G84: -42.6810848 | H84: 89.46965208 | I84: -5032.260524
D85: 75 | E85: 2025-07-19 | F85: 132.1507369 | G85: -41.93550437 | H85: 90.21523251 | I85: -4942.045292
D86: 76 | E86: 2025-08-19 | F86: 132.1507369 | G86: -41.18371077 | H86: 90.96702612 | I86: -4851.078266
D87: 77 | E87: 2025-09-19 | F87: 132.1507369 | G87: -40.42565222 | H87: 91.72508467 | I87: -4759.353181
D88: 78 | E88: 2025-10-19 | F88: 132.1507369 | G88: -39.66127651 | H88: 92.48946037 | I88: -4666.863721
D89: 79 | E89: 2025-11-19 | F89: 132.1507369 | G89: -38.89053101 | H89: 93.26020588 | I89: -4573.603515
D90: 80 | E90: 2025-12-19 | F90: 132.1507369 | G90: -38.11336262 | H90: 94.03737426 | I90: -4479.566141
D91: 81 | E91: 2026-01-19 | F91: 132.1507369 | G91: -37.32971784 | H91: 94.82101904 | I91: -4384.745122
D92: 82 | E92: 2026-02-19 | F92: 132.1507369 | G92: -36.53954268 | H92: 95.6111942 | I92: -4289.133927
D93: 83 | E93: 2026-03-19 | F93: 132.1507369 | G93: -35.74278273 | H93: 96.40795415 | I93: -4192.725973
D94: 84 | E94: 2026-04-19 | F94: 132.1507369 | G94: -34.93938311 | H94: 97.21135377 | I94: -4095.514619
D95: 85 | E95: 2026-05-19 | F95: 132.1507369 | G95: -34.1292885 | H95: 98.02144839 | I95: -3997.493171
D96: 86 | E96: 2026-06-19 | F96: 132.1507369 | G96: -33.31244309 | H96: 98.83829379 | I96: -3898.654877
D97: 87 | E97: 2026-07-19 | F97: 132.1507369 | G97: -32.48879064 | H97: 99.66194624 | I97: -3798.992931
D98: 88 | E98: 2026-08-19 | F98: 132.1507369 | G98: -31.65827443 | H98: 100.4924625 | I98: -3698.500469
D99: 89 | E99: 2026-09-19 | F99: 132.1507369 | G99: -30.82083724 | H99: 101.3298996 | I99: -3597.170569
D100: 90 | E100: 2026-10-19 | F100: 132.1507369 | G100: -29.97642141 | H100: 102.1743155 | I100: -3494.996253
D101: 91 | E101: 2026-11-19 | F101: 132.1507369 | G101: -29.12496878 | H101: 103.0257681 | I101: -3391.970485
D102: 92 | E102: 2026-12-19 | F102: 132.1507369 | G102: -28.26642071 | H102: 103.8843162 | I102: -3288.086169
D103: 93 | E103: 2027-01-19 | F103: 132.1507369 | G103: -27.40071808 | H103: 104.7500188 | I103: -3183.33615
D104: 94 | E104: 2027-02-19 | F104: 132.1507369 | G104: -26.52780125 | H104: 105.6229356 | I104: -3077.713215
D105: 95 | E105: 2027-03-19 | F105: 132.1507369 | G105: -25.64761012 | H105: 106.5031268 | I105: -2971.210088
D106: 96 | E106: 2027-04-19 | F106: 132.1507369 | G106: -24.76008407 | H106: 107.3906528 | I106: -2863.819435
D107: 97 | E107: 2027-05-19 | F107: 132.1507369 | G107: -23.86516196 | H107: 108.2855749 | I107: -2755.53386
D108: 98 | E108: 2027-06-19 | F108: 132.1507369 | G108: -22.96278217 | H108: 109.1879547 | I108: -2646.345906
D109: 99 | E109: 2027-07-19 | F109: 132.1507369 | G109: -22.05288255 | H109: 110.0978543 | I109: -2536.248051
D110: 100 | E110: 2027-08-19 | F110: 132.1507369 | G110: -21.13540043 | H110: 111.0153365 | I110: -2425.232715
D111: 101 | E111: 2027-09-19 | F111: 132.1507369 | G111: -20.21027262 | H111: 111.9404643 | I111: -2313.292251
D112: 102 | E112: 2027-10-19 | F112: 132.1507369 | G112: -19.27743542 | H112: 112.8733015 | I112: -2200.418949
D113: 103 | E113: 2027-11-19 | F113: 132.1507369 | G113: -18.33682458 | H113: 113.8139123 | I113: -2086.605037
D114: 104 | E114: 2027-12-19 | F114: 132.1507369 | G114: -17.38837531 | H114: 114.7623616 | I114: -1971.842675
D115: 105 | E115: 2028-01-19 | F115: 132.1507369 | G115: -16.43202229 | H115: 115.7187146 | I115: -1856.123961
D116: 106 | E116: 2028-02-19 | F116: 132.1507369 | G116: -15.46769967 | H116: 116.6830372 | I116: -1739.440923
D117: 107 | E117: 2028-03-19 | F117: 132.1507369 | G117: -14.49534103 | H117: 117.6553959 | I117: -1621.785528
D118: 108 | E118: 2028-04-19 | F118: 132.1507369 | G118: -13.5148794 | H118: 118.6358575 | I118: -1503.14967
D119: 109 | E119: 2028-05-19 | F119: 132.1507369 | G119: -12.52624725 | H119: 119.6244896 | I119: -1383.52518
D120: 110 | E120: 2028-06-19 | F120: 132.1507369 | G120: -11.5293765 | H120: 120.6213604 | I120: -1262.90382
D121: 111 | E121: 2028-07-19 | F121: 132.1507369 | G121: -10.5241985 | H121: 121.6265384 | I121: -1141.277282
D122: 112 | E122: 2028-08-19 | F122: 132.1507369 | G122: -9.510644014 | H122: 122.6400929 | I122: -1018.637189
D123: 113 | E123: 2028-09-19 | F123: 132.1507369 | G123: -8.48864324 | H123: 123.6620936 | I123: -894.9750951
D124: 114 | E124: 2028-10-19 | F124: 132.1507369 | G124: -7.458125793 | H124: 124.6926111 | I124: -770.2824841
D125: 115 | E125: 2028-11-19 | F125: 132.1507369 | G125: -6.4190207 | H125: 125.7317162 | I125: -644.5507679
D126: 116 | E126: 2028-12-19 | F126: 132.1507369 | G126: -5.371256399 | H126: 126.7794805 | I126: -517.7712874
D127: 117 | E127: 2029-01-19 | F127: 132.1507369 | G127: -4.314760728 | H127: 127.8359762 | I127: -389.9353112
D128: 118 | E128: 2029-02-19 | F128: 132.1507369 | G128: -3.249460927 | H128: 128.901276 | I128: -261.0340353
D129: 119 | E129: 2029-03-19 | F129: 132.1507369 | G129: -2.175283627 | H129: 129.9754533 | I129: -131.058582
D130: 120 | E130: 2029-04-19 | F130: 132.1507369 | G130: -1.09215485 | H130: 131.058582 | I130: -8.270717444e-12
F131: =SUM(F10:F130) -> 15858.08843 | G131: =SUM(G10:G130) -> -5858.088426 | H131: =SUM(H10:H130) -> 10000
